fUST/lending_fUST_20250705
["ID","MTS","AMOUNT","RATE_DAILY","PERIOD"]
[369701730,1751705448178,-1849.71,0.00019452,2]
[369701731,1751705448187,-460.0,0.00019452,2]
[369701732,1751705448196,-460.0,0.00019452,2]
[369701733,1751705448205,-460.0,0.00019452,2]
[369701734,1751705448215,-460.0,0.00019452,2]
[369701735,1751705448224,-229.28958415,0.00019452,2]
[369701736,1751705448234,-460.0,0.00019452,2]
[369701737,1751705448243,-460.0,0.00019452,2]
[369701738,1751705448252,-460.0,0.00019452,2]
[369701739,1751705448262,-460.0,0.00019452,2]
[369701740,1751705448271,-460.0,0.00019452,2]
[369701741,1751705448281,-460.0,0.00019452,2]
[369701742,1751705448290,-460.0,0.00019452,2]
[369701743,1751705448299,-460.0,0.00019452,2]
[369701744,1751705448309,-438.64120451,0.00019452,2]
[369701745,1751705448318,-1113.13,0.00019452,2]
[369701746,1751705448327,-460.0,0.00019452,2]
[369701747,1751705448336,-460.0,0.00019452,2]
[369701748,1751705448345,-460.0,0.00019452,2]
[369701749,1751705448354,-460.0,0.00019452,2]
[369701750,1751705448364,-460.0,0.00019452,2]
[369701751,1751705448373,-460.0,0.00019452,2]
[369701752,1751705448382,-460.0,0.00019452,2]
[369701753,1751705448392,-1231.64,0.00019452,2]
[369701754,1751705448401,-460.0,0.00019452,2]
[369701755,1751705448410,-460.0,0.00019452,2]
[369701756,1751705448419,-460.0,0.00019452,2]
[369701757,1751705448428,-460.0,0.00019452,2]
[369701758,1751705448438,-460.0,0.00019452,2]
[369701759,1751705448448,-460.0,0.00019452,2]
[369701760,1751705448457,-1097.56,0.00019452,2]
[369701761,1751705448467,-460.0,0.00019452,2]
[369701762,1751705448476,-460.0,0.00019452,2]
[369701763,1751705448485,-460.0,0.00019452,2]
[369701764,1751705448494,-386.59323947,0.00019452,2]
[369701765,1751705448505,-460.0,0.00019452,2]
[369701766,1751705448514,-460.0,0.00019452,2]
[369701767,1751705448523,-460.0,0.00019452,2]
[369701768,1751705448532,-460.0,0.00019452,2]
[369701769,1751705448543,-460.0,0.00019452,2]
[369701770,1751705448553,-460.0,0.00019452,2]
[369701771,1751705448562,-460.0,0.00019452,2]
[369701772,1751705448572,-460.0,0.00019452,2]
[369701773,1751705448581,-460.0,0.00019452,2]
[369701774,1751705448591,-352.21326845,0.00019452,2]
[369701775,1751705448600,-460.0,0.00019452,2]
[369701776,1751705448610,-471.98,0.00019452,2]
[369701777,1751705448619,-460.0,0.00019452,2]
[369701778,1751705448628,-252.97529638,0.00019452,2]
[369701779,1751705448638,-460.0,0.00019452,2]
[369701780,1751705448648,-460.0,0.00019452,2]
[369701781,1751705448659,-460.0,0.00019452,2]
[369701782,1751705448668,-460.0,0.00019452,2]
[369701783,1751705448677,-460.0,0.00019452,2]
[369701784,1751705448687,-460.0,0.00019452,2]
[369701785,1751705448696,-460.0,0.00019452,2]
[369701786,1751705448706,-864.44,0.00019452,2]
[369701787,1751705448715,-460.0,0.00019452,2]
[369701788,1751705448725,-460.0,0.00019452,2]
[369701789,1751705448734,-512.44591698,0.00019452,2]
[369701790,1751705448744,-460.0,0.00019452,2]
[369701791,1751705448753,-460.0,0.00019452,2]
[369701792,1751705448763,-2969.44,0.00019452,2]
[369701793,1751705448772,-494.81,0.00019452,2]
[369701794,1751705448782,-659.21,0.00019452,2]
[369701795,1751705448791,-537.5,0.00019452,2]
[369701796,1751705448801,-460.0,0.00019452,2]
[369701797,1751705448811,-460.0,0.00019452,2]
[369701798,1751705448820,-460.0,0.00019452,2]
[369701799,1751705448830,-460.0,0.00019452,2]
[369701800,1751705448839,-500.0,0.00019452,2]
[369701801,1751705448849,-334.3428347,0.00019452,2]
[369701802,1751705448858,-460.0,0.00019452,2]
[369701803,1751705448868,-1546.37,0.00019452,2]
[369701804,1751705448877,-460.0,0.00019452,2]
[369701805,1751705448886,-460.0,0.00019452,2]
[369701806,1751705448895,-460.0,0.00019452,2]
[369701807,1751705448905,-542.99,0.00019452,2]
[369701808,1751705448915,-460.0,0.00019452,2]
[369701809,1751705448924,-460.0,0.00019452,2]
[369701810,1751705448933,-975.4,0.00019452,2]
[369701811,1751705448943,-460.0,0.00019452,2]
[369701812,1751705448952,-460.0,0.00019452,2]
[369701813,1751705448961,-461.47280054,0.00019452,2]
[369701814,1751705448970,-925.77,0.00019452,2]
[369701815,1751705448979,-460.0,0.00019452,2]
[369701816,1751705448989,-460.0,0.00019452,2]
[369701817,1751705448998,-467.1,0.00019452,2]
[369701818,1751705449007,-460.0,0.00019452,2]
[369701819,1751705449017,-460.0,0.00019452,2]
[369701820,1751705449026,-499.15,0.00019452,2]
[369701821,1751705449036,-460.0,0.00019452,2]
[369701822,1751705449045,-460.0,0.00019452,2]
[369701823,1751705449055,-460.0,0.00019452,2]
[369701824,1751705449064,-460.0,0.00019452,2]
[369701825,1751705449074,-460.0,0.00019452,2]
[369701826,1751705449086,-489.12,0.00019452,2]
[369701827,1751705449095,-460.0,0.00019452,2]
[369701828,1751705449105,-460.0,0.00019452,2]
[369701829,1751705449114,-460.0,0.00019452,2]
[369701830,1751705449123,-460.0,0.00019452,2]
[369701831,1751705449132,-186.67486364,0.00019452,2]
[369701832,1751705449142,-460.0,0.00019452,2]
[369701833,1751705449151,-460.0,0.00019452,2]
[369701834,1751705449160,-460.0,0.00019452,2]
[369701835,1751705449170,-460.0,0.00019452,2]
[369701836,1751705449179,-460.0,0.00019452,2]
[369701837,1751705449188,-460.0,0.00019452,2]
[369701838,1751705449198,-460.0,0.00019452,2]
[369701839,1751705449207,-1000.0,0.0001948,2]
[369701840,1751705449216,-151.0,0.000195,2]
[369701841,1751705449226,-1000.0,0.00019521,2]
[369701842,1751705449235,-500.0,0.00019521,2]
[369701843,1751705449244,-1000.0,0.00019521,2]
[369701844,1751705449253,-1000.0,0.00019521,2]
[369701845,1751705449262,-500.0,0.00019521,2]
[369701846,1751705449272,-1000.0,0.00019521,2]
[369701847,1751705449281,-500.0,0.00019521,2]
[369701848,1751705449291,-1000.0,0.00019521,2]
[369701849,1751705449300,-1000.0,0.00019521,2]
[369701850,1751705449309,-482.60125508,0.00019521,2]
[369701851,1751705449318,-1000.0,0.00019521,2]
[369701852,1751705449327,-151.0,0.000196,2]
[369701853,1751705449337,-1000.0,0.00019698,2]
[369701854,1751705449347,-1000.0,0.00019698,2]
[369701855,1751705449357,-1000.0,0.00019698,2]
[369701856,1751705449366,-1000.0,0.00019698,2]
[369701857,1751705449375,-1000.0,0.00019698,2]
[369701858,1751705449385,-1000.0,0.00019698,2]
[369701859,1751705449395,-1000.0,0.00019698,2]
[369701860,1751705449404,-1000.0,0.00019698,2]
[369701861,1751705449413,-1000.0,0.00019698,2]
[369701862,1751705449423,-1000.0,0.00019698,2]
[369701863,1751705449432,-1000.0,0.00019698,2]
[369701864,1751705449441,-1000.0,0.00019698,2]
[369701865,1751705449450,-1000.0,0.00019698,2]
[369701866,1751705449460,-1000.0,0.00019698,2]
[369701867,1751705449469,-1000.0,0.00019698,2]
[369701868,1751705449479,-1000.0,0.00019698,2]
[369701869,1751705449489,-1000.0,0.00019698,2]
[369701870,1751705449498,-1000.0,0.00019698,2]
[369701871,1751705449507,-1000.0,0.00019698,2]
[369701872,1751705449516,-1000.0,0.00019698,2]
[369701873,1751705449526,-1000.0,0.00019698,2]
[369701874,1751705449536,-1000.0,0.00019698,2]
[369701875,1751705449546,-475.72153215,0.00019698,2]
[369701876,1751705449556,-151.0,0.000197,2]
[369701877,1751705449565,-500.0,0.00019719,2]
[369701878,1751705449580,-495.46284642,0.00019721,2]
[369701879,1751705449589,-748.29018701,0.00019721,2]
[369701880,1751705449599,-500.0,0.00019721,2]
[369701881,1751705449608,-1000.0,0.00019721,2]
[369701882,1751705449618,-1000.0,0.00019721,2]
[369701883,1751705449628,-925.73843759,0.00019721,2]
[369701884,1751705449638,-501.43278798,0.00019721,2]
[369701885,1751705449647,-1000.0,0.00019721,2]
[369701886,1751705449656,-500.0,0.00019721,2]
[369701887,1751705449665,-1000.0,0.00019721,2]
[369701888,1751705449675,-198.71431131,0.00019721,2]
[369701889,1751705449684,-1000.0,0.00019721,2]
[369701890,1751705449693,-1000.0,0.00019721,2]
[369701891,1751705449709,-1000.0,0.00019721,2]
[369701892,1751705449719,-1000.0,0.00019721,2]
[369701893,1751705449728,-1200.0,0.00019721,2]
[369701894,1751705449737,-1000.0,0.00019721,2]
[369701895,1751705449747,-151.409858,0.00019726,2]
[369701896,1751705449755,-460.0,0.00019726,2]
[369701897,1751705449765,-462.71057095,0.00019726,2]
[369701898,1751705449774,-460.0,0.00019726,2]
[369701899,1751705449785,-183.215037,0.00019726,2]
[369701900,1751705449794,-183.215037,0.00019726,2]
[369701901,1751705449803,-460.0,0.00019726,2]
[369701902,1751705449813,-460.0,0.00019726,2]
[369701903,1751705449822,-460.0,0.00019726,2]
[369701904,1751705449832,-272.978804,0.00019726,2]
[369701905,1751705449842,-241.693977,0.00019726,2]
[369701906,1751705449851,-272.978804,0.00019726,2]
[369701907,1751705449861,-241.693977,0.00019726,2]
[369701908,1751705449871,-460.0,0.00019726,2]
[369701909,1751705449881,-286.726556,0.00019726,2]
[369701910,1751705449890,-202.683629,0.00019726,2]
[369701911,1751705449901,-460.0,0.00019726,2]
[369701912,1751705449910,-202.683629,0.00019726,2]
[369701913,1751705449919,-483.81,0.00019726,2]
[369701914,1751705450050,-460.0,0.00019726,2]
[369701915,1751705450060,-460.0,0.00019726,2]
[369701916,1751705450070,-460.0,0.00019726,2]
[369701917,1751705450079,-460.0,0.00019726,2]
[369701918,1751705450089,-151.0,0.00019726,2]
[369701919,1751705450100,-460.0,0.00019726,2]
[369701920,1751705450110,-460.0,0.00019726,2]
[369701921,1751705450119,-151.0,0.00019726,2]
[369701922,1751705450128,-460.0,0.00019726,2]
[369701923,1751705450139,-460.0,0.00019726,2]
[369701924,1751705450148,-460.0,0.00019726,2]
[369701925,1751705450158,-460.0,0.00019726,2]
[369701926,1751705450168,-151.0,0.00019726,2]
[369701927,1751705450177,-242.44062772,0.00019726,2]
[369701928,1751705450187,-151.0,0.00019726,2]
[369701929,1751705450196,-1000.0,0.00019726,2]
[369701930,1751705450206,-460.0,0.00019726,2]
[369701931,1751705450215,-460.0,0.00019726,2]
[369701932,1751705450224,-460.0,0.00019726,2]
[369701933,1751705450234,-513.53,0.00019726,2]
[369701934,1751705450243,-231.800286,0.00019726,2]
[369701935,1751705450252,-231.800286,0.00019726,2]
[369701936,1751705450262,-244.807354,0.00019726,2]
[369701937,1751705450271,-244.807354,0.00019726,2]
[369701938,1751705450281,-576.17712303,0.00019726,2]
[369701939,1751705450290,-190.215856,0.00019726,2]
[369701940,1751705450299,-460.0,0.00019726,2]
[369701941,1751705450308,-460.0,0.00019726,2]
[369701942,1751705450318,-190.215856,0.00019726,2]
[369701943,1751705450327,-460.0,0.00019726,2]
[369701944,1751705450336,-460.0,0.00019726,2]
[369701945,1751705450346,-460.0,0.00019726,2]
[369701946,1751705450355,-460.0,0.00019726,2]
[369701947,1751705450365,-477.35,0.00019726,2]
[369701948,1751705450375,-460.0,0.00019726,2]
[369701949,1751705450384,-460.0,0.00019726,2]
[369701950,1751705450393,-460.0,0.00019726,2]
[369701951,1751705450402,-460.0,0.00019726,2]
[369701952,1751705450412,-460.0,0.00019726,2]
[369701953,1751705450421,-500.0,0.00019726,2]
[369701954,1751705450430,-460.0,0.00019726,2]
[369701955,1751705450439,-460.0,0.00019726,2]
[369701956,1751705450448,-209.01676512,0.00019726,2]
[369701957,1751705450457,-460.0,0.00019726,2]
[369701958,1751705450467,-460.0,0.00019726,2]
[369701959,1751705450476,-460.0,0.00019726,2]
[369701960,1751705450485,-460.0,0.00019726,2]
[369701961,1751705450494,-460.0,0.00019726,2]
[369701962,1751705450503,-460.0,0.00019726,2]
[369701963,1751705450513,-460.0,0.00019726,2]
[369701964,1751705450522,-498.35,0.00019726,2]
[369701965,1751705450532,-522.39,0.00019726,2]
[369701966,1751705450542,-460.0,0.00019726,2]
[369701967,1751705450552,-460.0,0.00019726,2]
[369701968,1751705450561,-491.0,0.00019726,2]
[369701969,1751705450570,-460.0,0.00019726,2]
[369701970,1751705450579,-460.0,0.00019726,2]
[369701971,1751705450589,-460.0,0.00019726,2]
[369701972,1751705450598,-460.0,0.00019726,2]
[369701973,1751705450607,-460.0,0.00019726,2]
[369701974,1751705450617,-460.0,0.00019726,2]
[369701975,1751705450626,-460.0,0.00019726,2]
[369701976,1751705450636,-460.0,0.00019726,2]
[369701977,1751705450645,-460.0,0.00019726,2]
[369701978,1751705450656,-460.0,0.00019726,2]
[369701979,1751705450666,-432.26606183,0.00019726,2]
[369701980,1751705450676,-460.0,0.00019726,2]
[369701981,1751705450685,-460.0,0.00019726,2]
[369701982,1751705450695,-460.0,0.00019726,2]
[369701983,1751705450705,-520.03347722,0.00019726,2]
[369701984,1751705450723,-460.0,0.00019726,2]
[369701985,1751705450732,-485.46,0.00019726,2]
[369701986,1751705450742,-460.0,0.00019726,2]
[369701987,1751705450751,-460.0,0.00019726,2]
[369701988,1751705450760,-460.0,0.00019726,2]
[369701989,1751705450769,-460.0,0.00019726,2]
[369701990,1751705450778,-460.0,0.00019726,2]
[369701991,1751705450789,-489.7,0.00019726,2]
[369701992,1751705450798,-460.0,0.00019726,2]
[369701993,1751705450808,-460.0,0.00019726,2]
[369701994,1751705450817,-460.0,0.00019726,2]
[369701995,1751705450827,-460.0,0.00019726,2]
[369701996,1751705450837,-460.0,0.00019726,2]
[369701997,1751705450846,-518.91308385,0.00019726,2]
[369701998,1751705450856,-460.0,0.00019726,2]
[369701999,1751705450865,-460.0,0.00019726,2]
[369702000,1751705450875,-460.0,0.00019726,2]
[369702001,1751705450885,-460.0,0.00019726,2]
[369702002,1751705450895,-460.0,0.00019726,2]
[369702003,1751705450904,-460.0,0.00019726,2]
[369702004,1751705450914,-460.0,0.00019726,2]
[369702005,1751705450923,-461.60092312,0.00019726,2]
[369702006,1751705450933,-503.8,0.00019726,2]
[369702007,1751705450942,-460.0,0.00019726,2]
[369702008,1751705450951,-460.0,0.00019726,2]
[369702009,1751705450961,-460.0,0.00019726,2]
[369702010,1751705450971,-460.0,0.00019726,2]
[369702011,1751705450980,-460.0,0.00019726,2]
[369702012,1751705450991,-460.0,0.00019726,2]
[369702013,1751705451001,-2954.13,0.00019726,2]
[369702014,1751705451011,-460.0,0.00019726,2]
[369702015,1751705451020,-850.66,0.00019726,2]
[369702016,1751705451030,-460.0,0.00019726,2]
[369702017,1751705451039,-467.87,0.00019726,2]
[369702018,1751705451049,-460.0,0.00019726,2]
[369702019,1751705451058,-463.42469228,0.00019726,2]
[369702020,1751705451067,-3180.63,0.00019726,2]
[369702021,1751705451077,-813.46,0.00019726,2]
[369702022,1751705451086,-460.0,0.00019726,2]
[369702023,1751705451096,-493.57,0.00019726,2]
[369702024,1751705451105,-523.58,0.00019726,2]
[369702025,1751705451115,-2519.81,0.00019726,2]
[369702026,1751705451125,-460.0,0.00019726,2]
[369702027,1751705451136,-460.0,0.00019726,2]
[369702028,1751705451145,-460.0,0.00019726,2]
[369702029,1751705451155,-460.0,0.00019726,2]
[369702030,1751705451164,-460.0,0.00019726,2]
[369702031,1751705451173,-460.0,0.00019726,2]
[369702032,1751705451183,-460.0,0.00019726,2]
[369702033,1751705451192,-460.0,0.00019726,2]
[369702034,1751705451202,-1096.46,0.00019726,2]
[369702035,1751705451211,-460.0,0.00019726,2]
[369702036,1751705451220,-460.0,0.00019726,2]
[369702037,1751705451230,-460.0,0.00019726,2]
[369702038,1751705451239,-460.0,0.00019726,2]
[369702039,1751705451249,-757.63,0.00019726,2]
[369702040,1751705451259,-460.0,0.00019726,2]
[369702041,1751705451268,-1597.79,0.00019726,2]
[369702042,1751705451277,-460.0,0.00019726,2]
[369702043,1751705451287,-460.0,0.00019726,2]
[369702044,1751705451296,-460.0,0.00019726,2]
[369702045,1751705451305,-460.0,0.00019726,2]
[369702046,1751705451315,-460.0,0.00019726,2]
[369702047,1751705451324,-460.0,0.00019726,2]
[369702048,1751705451334,-460.0,0.00019726,2]
[369702049,1751705451343,-1311.47,0.00019726,2]
[369702050,1751705451352,-460.0,0.00019726,2]
[369702051,1751705451362,-460.0,0.00019726,2]
[369702052,1751705451371,-1777.6,0.00019726,2]
[369702053,1751705451380,-460.0,0.00019726,2]
[369702054,1751705451389,-460.0,0.00019726,2]
[369702055,1751705451398,-587.58,0.00019726,2]
[369702056,1751705451407,-589.32567684,0.00019726,2]
[369702057,1751705451417,-460.0,0.00019726,2]
[369702058,1751705451426,-460.0,0.00019726,2]
[369702059,1751705451435,-460.0,0.00019726,2]
[369702060,1751705451444,-460.0,0.00019726,2]
[369702061,1751705451454,-460.0,0.00019726,2]
[369702062,1751705451464,-460.0,0.00019726,2]
[369702063,1751705451473,-460.0,0.00019726,2]
[369702064,1751705451483,-3313.29,0.00019726,2]
[369702065,1751705451492,-460.0,0.00019726,2]
[369702066,1751705451501,-1849.71,0.00019726,2]
[369702067,1751705451510,-460.0,0.00019726,2]
[369702068,1751705451519,-460.0,0.00019726,2]
[369702069,1751705451528,-460.0,0.00019726,2]
[369702070,1751705451540,-460.0,0.00019726,2]
[369702071,1751705451549,-460.0,0.00019726,2]
[369702072,1751705451558,-460.0,0.00019726,2]
[369702073,1751705451568,-460.0,0.00019726,2]
[369702074,1751705451577,-460.0,0.00019726,2]
[369702075,1751705451586,-460.0,0.00019726,2]
[369702076,1751705451596,-1113.13,0.00019726,2]
[369702077,1751705451605,-460.0,0.00019726,2]
[369702078,1751705451614,-460.0,0.00019726,2]
[369702079,1751705451623,-529.81,0.00019726,2]
[369702080,1751705451633,-1231.64,0.00019726,2]
[369702081,1751705451642,-460.0,0.00019726,2]
[369702082,1751705451652,-460.0,0.00019726,2]
[369702083,1751705451661,-460.0,0.00019726,2]
[369702084,1751705451671,-507.16,0.00019726,2]
[369702085,1751705451680,-1097.56,0.00019726,2]
[369702086,1751705451689,-460.0,0.00019726,2]
[369702087,1751705451699,-460.0,0.00019726,2]
[369702088,1751705451708,-431.85,0.00019726,2]
[369702089,1751705451718,-460.0,0.00019726,2]
[369702090,1751705451727,-460.0,0.00019726,2]
[369702091,1751705451736,-460.0,0.00019726,2]
[369702092,1751705451746,-460.0,0.00019726,2]
[369702093,1751705451755,-460.0,0.00019726,2]
[369702094,1751705451764,-460.0,0.00019726,2]
[369702095,1751705451773,-471.98,0.00019726,2]
[369702096,1751705451782,-460.0,0.00019726,2]
[369702097,1751705451791,-596.82814661,0.00019726,2]
[369702098,1751705451801,-460.0,0.00019726,2]
[369702099,1751705451810,-570.26,0.00019726,2]
[369702100,1751705451820,-864.44,0.00019726,2]
[369702101,1751705451829,-460.0,0.00019726,2]
[369702102,1751705451839,-460.0,0.00019726,2]
[369702103,1751705451848,-460.0,0.00019726,2]
[369702104,1751705451858,-2969.44,0.00019726,2]
[369702105,1751705451867,-494.81,0.00019726,2]
[369702106,1751705451877,-659.21,0.00019726,2]
[369702107,1751705451888,-537.5,0.00019726,2]
[369702108,1751705451898,-460.0,0.00019726,2]
[369702109,1751705451907,-460.0,0.00019726,2]
[369702110,1751705451916,-500.0,0.00019726,2]
[369702111,1751705451926,-460.0,0.00019726,2]
[369702112,1751705451935,-1546.37,0.00019726,2]
[369702113,1751705451944,-460.0,0.00019726,2]
[369702114,1751705451953,-542.99,0.00019726,2]
[369702115,1751705451963,-460.0,0.00019726,2]
[369702116,1751705451972,-460.0,0.00019726,2]
[369702117,1751705451982,-460.0,0.00019726,2]
[369702118,1751705451993,-975.4,0.00019726,2]
[369702119,1751705452002,-460.0,0.00019726,2]
[369702120,1751705452012,-925.77,0.00019726,2]
[369702121,1751705452021,-460.0,0.00019726,2]
[369702122,1751705452030,-460.0,0.00019726,2]
[369702123,1751705452040,-460.0,0.00019726,2]
[369702124,1751705452049,-460.0,0.00019726,2]
[369702125,1751705452058,-460.0,0.00019726,2]
[369702126,1751705452067,-472.43075213,0.00019726,2]
[369702127,1751705452077,-489.12,0.00019726,2]
[369702128,1751705452087,-460.0,0.00019726,2]
[369702129,1751705452096,-460.0,0.00019726,2]
[369702130,1751705452105,-460.0,0.00019726,2]
[369702131,1751705452119,-163.02,0.00019726,2]
[369702132,1751705452129,-460.0,0.00019726,2]
[369702133,1751705452139,-460.0,0.00019726,2]
[369702134,1751705452148,-460.0,0.00019726,2]
[369702135,1751705452157,-460.0,0.00019726,2]
[369702136,1751705452167,-460.0,0.00019726,2]
[369702137,1751705452176,-848.02350475,0.00019865,2]
[369702138,1751705452185,-160.0,0.00019865,2]
[369702139,1751705452195,-12580.16877015,0.00019865,2]
[369702140,1751705452204,-230.42616721,0.00019865,2]
[369702141,1751705452214,-160.0,0.00019865,2]
[369702142,1751705452223,-160.0,0.00019865,2]
[369702143,1751705452232,-160.0,0.00019865,2]
[369702144,1751705452242,-160.0,0.00019865,2]
[369702145,1751705452253,-837.5764301,0.00019865,2]
[369702146,1751705452264,-215.14521394,0.00019866,2]
[369702147,1751705452274,-205.49733556,0.000199,2]
[369702148,1751705452285,-1000.0,0.0001999,2]
[369702149,1751705452294,-500.0,0.00019993,2]
[369702150,1751705452304,-151.0,0.0002,2]
[369702151,1751705452314,-4000.0,0.0002,50]
[369702152,1751705452323,-183.215037,0.0002,2]
[369702153,1751705452331,-183.215037,0.0002,2]
[369702154,1751705452340,-462.76,0.0002,2]
[369702155,1751705452350,-241.693977,0.0002,2]
[369702156,1751705452359,-241.693977,0.0002,2]
[369702157,1751705452369,-202.683629,0.0002,2]
[369702158,1751705452378,-202.683629,0.0002,2]
[369702159,1751705452388,-460.0,0.0002,2]
[369702160,1751705452397,-460.0,0.0002,2]
[369702161,1751705452406,-151.0,0.0002,2]
[369702162,1751705452415,-151.0,0.0002,2]
[369702163,1751705452424,-151.0,0.0002,2]
[369702164,1751705452433,-277.407713,0.0002,2]
[369702165,1751705452442,-204.86262759,0.0002,2]
[369702166,1751705452452,-460.0,0.0002,2]
[369702167,1751705452461,-231.800286,0.0002,2]
[369702168,1751705452471,-231.800286,0.0002,2]
[369702169,1751705452480,-190.215856,0.0002,2]
[369702170,1751705452488,-190.215856,0.0002,2]
[369702171,1751705452498,-185.15990976,0.0002,2]
[369702172,1751705452506,-477.35,0.0002,2]
[369702173,1751705452516,-401.45,0.0002,2]
[369702174,1751705452525,-609.90379665,0.0002,2]
[369702175,1751705452535,-460.0,0.0002,2]
[369702176,1751705452661,-460.0,0.0002,2]
[369702177,1751705452671,-460.0,0.0002,2]
[369702178,1751705452680,-460.0,0.0002,2]
[369702179,1751705452690,-460.0,0.0002,2]
[369702180,1751705452699,-460.0,0.0002,2]
[369702181,1751705452708,-460.0,0.0002,2]
[369702182,1751705452718,-498.35,0.0002,2]
[369702183,1751705452727,-460.0,0.0002,2]
[369702184,1751705452736,-278.9,0.0002,2]
[369702185,1751705452745,-489.53,0.0002,2]
[369702186,1751705452755,-460.0,0.0002,2]
[369702187,1751705452763,-473.66,0.0002,2]
[369702188,1751705452773,-460.0,0.0002,2]
[369702189,1751705452783,-485.46,0.0002,2]
[369702190,1751705452792,-460.0,0.0002,2]
[369702191,1751705452802,-460.0,0.0002,2]
[369702192,1751705452811,-460.0,0.0002,2]
[369702193,1751705452820,-460.0,0.0002,2]
[369702194,1751705452829,-489.7,0.0002,2]
[369702195,1751705452838,-460.0,0.0002,2]
[369702196,1751705452847,-460.0,0.0002,2]
[369702197,1751705452856,-460.0,0.0002,2]
[369702198,1751705452865,-460.0,0.0002,2]
[369702199,1751705452874,-460.0,0.0002,2]
[369702200,1751705452883,-460.0,0.0002,2]
[369702201,1751705452891,-460.0,0.0002,2]
[369702202,1751705452900,-460.0,0.0002,2]
[369702203,1751705452910,-460.0,0.0002,2]
[369702204,1751705452919,-460.0,0.0002,2]
[369702205,1751705452928,-460.0,0.0002,2]
[369702206,1751705452937,-460.0,0.0002,2]
[369702207,1751705452946,-2954.13,0.0002,2]
[369702208,1751705452955,-460.0,0.0002,2]
[369702209,1751705452964,-850.66,0.0002,2]
[369702210,1751705452973,-467.87,0.0002,2]
[369702211,1751705452983,-3180.63,0.0002,2]
[369702212,1751705452992,-813.46,0.0002,2]
[369702213,1751705453001,-523.58,0.0002,2]
[369702214,1751705453010,-2519.81,0.0002,2]
[369702215,1751705453020,-460.0,0.0002,2]
[369702216,1751705453029,-267.57,0.0002,2]
[369702217,1751705453038,-460.0,0.0002,2]
[369702218,1751705453047,-460.0,0.0002,2]
[369702219,1751705453056,-460.0,0.0002,2]
[369702220,1751705453065,-1096.46,0.0002,2]
[369702221,1751705453075,-542.0,0.0002,2]
[369702222,1751705453084,-460.0,0.0002,2]
[369702223,1751705453093,-757.63,0.0002,2]
[369702224,1751705453102,-460.0,0.0002,2]
[369702225,1751705453112,-1597.79,0.0002,2]
[369702226,1751705453122,-460.0,0.0002,2]
[369702227,1751705453131,-460.0,0.0002,2]
[369702228,1751705453140,-460.0,0.0002,2]
[369702229,1751705453150,-460.0,0.0002,2]